Cogmind - Beta 13 @@@ ROGUE MODE // 2024.07.28 @ 13:13:27 Player: weedlord420 Result: Self-destructed Performance ------------- Evolutions (2) 1000 Regions Visited (6) 1200 Robots Destroyed (97) 485 Value Destroyed (2771) 2771 Prototype IDs (31) 620 Alien Tech Used (0) 0 Bonus (463) 463 TOTAL SCORE: 6539 Bonus ------- High Alert Combat Kills 210 Follower Combat Kills 35 Aligned with FarCom 300 Friendly Fire -82 Cogmind --------- Core Integrity 192/550 Matter 284/300 Energy 265/265 System Corruption 0% Temperature Cool (0) Movement Treading (145) Location -8/Storage Parts ------- > --- POWER (1) -------- Improved Ion Engine > --- PROPULSION (3) --- Advanced Treads Advanced Treads > --- UTILITY (5) ------ Medium Storage Unit > --- WEAPON (2) ------- Advanced EMP Blaster Rocket Launcher > --- INVENTORY (10) --- Improved Hover Unit Combat Airjet Experimental Sensor Array Hacking Suite Firepult Improved Assault Rifle Improved Assault Rifle Heavy Assault Cannon Peak State ------------ > --- POWER ------------ Improved Ion Engine > --- PROPULSION ------- Advanced Treads Advanced Treads Advanced Treads > --- UTILITY ---------- Improved Heat Sink Medium Storage Unit Improved Weapon Shielding Improved Weapon Shielding Light Armor Plating > --- WEAPON ----------- High-powered Shotgun Makeshift Shrapnel Gun > --- INVENTORY -------- Improved Hover Unit Combat Airjet Experimental Sensor Array Propulsion Shielding Hacking Suite Firepult Heavy Assault Cannon Advanced EMP Blaster [Rating: 34] Favorites ----------- Power Light Nuclear Core Engine Ion Engine Power Core Light Nuclear Core Propulsion Light Treads Treads Light Treads Utility Light Armor Plating Device Improved Heat Sink Storage Small Storage Unit Protection Light Armor Plating Weapon Assault Rifle Ballistic Gun Assault Rifle Launcher Rocket Launcher Build | -11 -10 -10 -10 -9 -8 -8 ------- Run | Yrd Mat Min Exi Min Mat Sto Slots Evolved 4 | . . . . . 4 . Power . | . . . . . . . Propulsion 1 | . . . . . 1 . Utility 3 | . . . . . 3 . Weapon . | . . . . . . . Parts Attached 63 | 6 5 10 3 5 15 19 Power 3 | 1 . 1 . . 1 . Engine 2 | 1 . . . . 1 . Core 1 | . . 1 . . . . Reactor . | . . . . . . . Propulsion 11 | 2 . 2 1 . 3 3 Treads 11 | 2 . 2 1 . 3 3 Leg . | . . . . . . . Wheel . | . . . . . . . Hover . | . . . . . . . Flight . | . . . . . . . Utility 18 | 1 2 1 2 1 7 4 Device 5 | . . . 1 . 3 1 Storage 2 | 1 . . . 1 . . Processor . | . . . . . . . Hackware . | . . . . . . . Protection 11 | . 2 1 1 . 4 3 Artifact . | . . . . . . . Weapon 31 | 2 3 6 . 4 4 12 Energy Gun . | . . . . . . . Energy Cannon . | . . . . . . . Ballistic Gun 19 | 2 2 4 . 2 3 6 Ballistic Cannon . | . . . . . . . Launcher 12 | . 1 2 . 2 1 6 Special Weapon . | . . . . . . . Impact Weapon . | . . . . . . . Slashing Weapon . | . . . . . . . Piercing Weapon . | . . . . . . . Special Melee Weapon . | . . . . . . . Unidentified Prototypes 3 | . . . . . 1 2 Parts Lost 12 | . 1 3 . . 1 7 Power 1 | . . 1 . . . . Propulsion 1 | . . . . . . 1 Utility 9 | . 1 1 . . 1 6 Weapon 1 | . . 1 . . . . Highest Loss Streak 4 | . 1 2 . . 1 4 To Critical Strikes . | . . . . . . . Average Slot Usage (%) 96 | . 96 99 99 100 93 84 Engine 6 | . 14 9 . . 2 9 Core 5 | . . 4 14 14 6 . Treads 27 | . 28 28 28 28 24 25 Device 3 | . . . . . 13 5 Storage 12 | . 14 14 14 14 9 9 Protection 14 | . 11 13 13 14 18 17 Ballistic Gun 22 | . 27 27 28 18 16 13 Launcher 2 | . . . . 9 1 4 Naked Turns . | . . . . . . . Heaviest Build 33 | 13 18 18 18 25 30 33 Greatest Support 66 | 40 40 40 40 40 60 66 Greatest Overweight (x) . | . . . . . . . Average Overweight (x) . | . . . . . . . Largest Inventory Capacity 10 | 8 8 8 8 10 10 10 Average Capacity 8 | 5 8 8 8 9 10 10 Most Carried 10 | 5 8 8 8 10 10 10 Average Carried 8 | 3 5 6 7 9 9 9 Final Capacity 10 | 8 8 8 8 10 10 10 Final Carried 10 | . 8 8 8 10 10 10 Class Distribution -------------------- 83% | Mutant 16% | Scavenger-Mutant Dominant Class ---------------- Mutant | -10/Materials Mutant | -10/Mines Mutant | -10/Exiles Mutant | -9/Mines Scavenger-Mutant | -8/Materials Mutant | -8/Storage Resources | -11 -10 -10 -10 -9 -8 -8 ----------- Run | Yrd Mat Min Exi Min Mat Sto Matter Collected 2369 | 210 376 292 . 109 563 819 Remotely . | . . . . . . . Salvage Created 3191 | . 560 396 . 95 721 1419 Parts 189 | . 31 16 . 13 44 85 Haulers Intercepted 6 | . 2 . . . 1 3 Recyclers Shooed 5 | . . 2 . . 2 1 Parts Field Recycled . | . . . . . . . Retrieved Matter . | . . . . . . . Parts Self-Destructed . | . . . . . . . Prevented . | . . . . . . . Kills | -11 -10 -10 -10 -9 -8 -8 ------- Run | Yrd Mat Min Exi Min Mat Sto Combat Hostiles Destroyed 71 | . 10 11 . 6 19 25 Guns 49 | . 10 10 . 2 15 12 AOE 22 | . . 1 . 4 4 13 Classes Destroyed 13 | . 6 2 . 1 1 3 Worker 2 | . . . . 1 . 1 Builder 7 | . . . . . 2 5 Hauler 6 | . 2 . . . 1 3 Recycler 6 | . 1 2 . . . 3 Mechanic 4 | . . . . . . 4 Operator 4 | . 1 . . . 2 1 Watcher 3 | . 2 . . . . 1 Swarmer 18 | . 3 2 . 6 4 3 Grunt 36 | . 7 1 . . 12 16 Brawler 2 | . . . . . . 2 Duelist 1 | . . . . . . 1 Sentry 8 | . . 2 . . 3 3 Assembled 6 | . . 6 . . . . Best Kill Streak 12 | . 5 4 . 4 4 12 Combat Bots Only 8 | . 4 4 . 4 4 8 Max Kills in Single Turn 6 | . 1 2 . 4 2 6 Gunslinging 1 | . . 1 . . . . Exploded 4 | . . 1 . 4 1 3 Melee . | . . . . . . . Uniques/NPCs Destroyed . | . . . . . . . Combat | -11 -10 -10 -10 -9 -8 -8 -------- Run | Yrd Mat Min Exi Min Mat Sto Hostile Shots Fired 270 | . 50 55 . 7 62 96 Missed 66 | . 10 17 . 4 13 22 Damage Taken 3145 | . 455 442 . 21 763 1464 Core 489 | . 67 57 . 7 127 231 Absorbed by Shields . | . . . . . . . Redirected to Shielding 264 | . . . . . 9 255 Regen/Repaired (Parts) 135 | . 61 . . . 74 . Core Remaining (%) 73 | 100 . . . 47 . . Volleys Fired 232 | . 81 35 . 5 54 57 Largest 2 | . 2 2 . 2 2 2 Hottest 69 | . 50 50 . 56 58 69 Shots Fired 460 | . 162 69 . 10 106 113 Gun 426 | . 160 67 . 8 101 90 Cannon . | . . . . . . . Launcher 34 | . 2 2 . 2 5 23 Special . | . . . . . . . Kinetic 426 | . 160 67 . 8 101 90 Thermal . | . . . . . . . Explosive 24 | . 2 2 . 2 5 13 Electromagnetic 10 | . . . . . . 10 Robot Hit Streak 16 | . 16 11 . 1 8 10 Robot Miss Streak 8 | . 5 4 . 5 8 8 Penetration Max . | . . . . . . . Secondary Targets 8 | . 2 3 . . . 3 Max Gunslinging Chain 1 | . 1 1 . . . 1 Shots Hit Robots 304 | . 98 41 . 1 83 81 Core Hits 224 | . 32 26 . 8 65 93 Critical Kills 2 | . 1 . . . . 1 Critical Parts Destroyed . | . . . . . . . Critical Strikes 2 | . 1 . . . . 1 Destroy 2 | . 1 . . . . 1 Melee Attacks . | . . . . . . . Impact . | . . . . . . . Slashing . | . . . . . . . Piercing . | . . . . . . . Sneak Attacks . | . . . . . . . Combat Hostiles . | . . . . . . . Follow-up Attacks . | . . . . . . . Damage Inflicted 7603 | . 1025 499 . 267 1856 3956 Guns 4512 | . 1006 451 . 47 1438 1570 Cannons . | . . . . . . . Explosions 3052 | . . 48 . 200 418 2386 Melee . | . . . . . . . Ramming 39 | . 19 . . 20 . . Kinetic 4512 | . 1006 451 . 47 1438 1570 Thermal 65 | . . . . . . 65 Explosive 2057 | . . 48 . 200 418 1391 Electromagnetic 930 | . . . . . . 930 Impact . | . . . . . . . Slashing . | . . . . . . . Piercing . | . . . . . . . Highest Corruption . | . . . . . . . Average Corruption . | . . . . . . . Corruption Purged . | . . . . . . . Corruption Blocked . | . . . . . . . Overload Shots . | . . . . . . . Overflow Damage 63 | . . . . . 7 56 Projectiles . | . . . . . . . Explosions 63 | . . . . . 7 56 Melee . | . . . . . . . Knockbacks . | . . . . . . . Impact . | . . . . . . . Kinetic . | . . . . . . . Secondary . | . . . . . . . Self-Inflicted Damage 301 | . . 32 . . 30 239 Shots 11 | . . 1 . . 1 9 Rammed 8 | . 2 . . 6 . . Targets Rammed 8 | . 2 . . 6 . . Kicked . | . . . . . . . Crushed . | . . . . . . . Highest Temperature 144 | . 35 28 . 9 10 144 Average Temperature 16 | . 8 8 . 5 5 85 Received Heat Transfer 1327 | . 216 103 . . 441 567 Siege Activations . | . . . . . . . Robots Corrupted . | . . . . . . . Combat Hostiles . | . . . . . . . Parts Fried 5 | . . . . . . 5 Impact Corruptions . | . . . . . . . Robots Melted . | . . . . . . . Combat Hostiles . | . . . . . . . Parts Melted . | . . . . . . . Heat Transferred 200 | . . . . . . 200 Parts Sabotaged . | . . . . . . . Parts Stolen . | . . . . . . . Parts Stripped . | . . . . . . . Power Chain Reactions 6 | . . . . . . 6 Alert | -11 -10 -10 -10 -9 -8 -8 ------- Run | Yrd Mat Min Exi Min Mat Sto Peak Influence 758 | . 233 117 . 173 326 758 Initial 120 | . . 8 . . . 120 Average 113 | . 60 33 . 23 167 463 Maximum Alert Level 3 | . 1 . . . 1 3 Low Security (%) 79 | 100 91 100 . 100 60 10 Level 1 14 | . 8 . . . 39 35 Level 2 4 | . . . . . . 37 Level 3 1 | . . . . . . 16 Level 4 . | . . . . . . . Level 5 . | . . . . . . . High Security . | . . . . . . . Max Security . | . . . . . . . Squads Dispatched 8 | . 1 . . . 3 4 Investigation . | . . . . . . . Extermination . | . . . . . . . Reinforcement 5 | . 1 . . . 3 1 Assault 3 | . . . . . . 3 Garrison . | . . . . . . . Intercept . | . . . . . . . Searches Triggered . | . . . . . . . Construction Impeded . | . . . . . . . Haulers Reinforced . | . . . . . . . Active Scanning Responses . | . . . . . . . Cargo Convoy Interrupts . | . . . . . . . Stealth | -11 -10 -10 -10 -9 -8 -8 --------- Run | Yrd Mat Min Exi Min Mat Sto Distress Signals 7 | . 3 . . . 2 2 Communications Jammed . | . . . . . . . Distress Signals . | . . . . . . . Times Spotted 124 | . 22 13 . 6 32 51 Peak Tracking Total 6 | . 4 3 . 4 5 6 Tactical Retreats 5 | . 1 1 . 1 1 1 Traps | -11 -10 -10 -10 -9 -8 -8 ------- Run | Yrd Mat Min Exi Min Mat Sto Traps Triggered 3 | . . . . . . 3 Indirectly 3 | . . . . . . 3 Trap Hack Attempts . | . . . . . . . Triggered . | . . . . . . . Disarmed . | . . . . . . . Reprogrammed . | . . . . . . . Reused . | . . . . . . . Traps Extracted . | . . . . . . . Installed . | . . . . . . . Triggered . | . . . . . . . Machines | -11 -10 -10 -10 -9 -8 -8 ---------- Run | Yrd Mat Min Exi Min Mat Sto Machines Disabled 10 | . 2 . . . . 8 Max in Single Turn 3 | . 2 . . . . 3 Garrison Access 1 | . . . . . . 1 Machines Repaired . | . . . . . . . Machines Dismantled . | . . . . . . . Machines Sabotaged . | . . . . . . . Overloaded Fab Kills . | . . . . . . . Hacking | -11 -10 -10 -10 -9 -8 -8 --------- Run | Yrd Mat Min Exi Min Mat Sto Machines Accessed 11 | . 7 . 1 . 1 2 Terminals 8 | . 6 . . . . 2 Fabricators . | . . . . . . . Repair Stations 2 | . 1 . . . 1 . Recycling Units . | . . . . . . . Scanalyzers . | . . . . . . . Garrison Access . | . . . . . . . Total Hacks 28 | . 22 . 1 . 2 3 Successful 18 | . 13 . 1 . 2 2 Failed 10 | . 9 . . . . 1 Catastrophic 1 | . 1 . . . . . Database Lockouts . | . . . . . . . Manual 8 | . 5 . 1 . . 2 Terminals 22 | . 19 . . . . 3 Fabricators . | . . . . . . . Repair Stations 5 | . 3 . . . 2 . Recycling Units . | . . . . . . . Scanalyzers . | . . . . . . . Garrison Access . | . . . . . . . Terminal Hacks 13 | . 10 . 1 . . 2 Prototype ID Bank 3 | . 3 . . . . . Open Door 1 | . . . . . . 1 Emergency Access Points 2 | . 2 . . . . . Unreport Threat 1 | . . . . . . 1 Locate Traps 4 | . 4 . . . . . Dispatch Records 1 | . 1 . . . . . Derelict Proto ID Bank 1 | . . . 1 . . . Fabricator Hacks . | . . . . . . . Repair Station Hacks 5 | . 3 . . . 2 . Scan Component 3 | . 2 . . . 1 . Repair 2 | . 1 . . . 1 . Recycling Unit Hacks . | . . . . . . . Scanalyzer . | . . . . . . . Garrison Access Hacks . | . . . . . . . Unauthorized Hacks . | . . . . . . . Terminals . | . . . . . . . Fabricators . | . . . . . . . Repair Stations . | . . . . . . . Recycling Units . | . . . . . . . Scanalyzers . | . . . . . . . Garrison Access . | . . . . . . . Data Cores Recovered 1 | . 1 . . . . . Used . | . . . . . . . Hacking Detections 7 | . 6 . . . . 1 Full Trace Events 1 | . 1 . . . . . Feedback Events . | . . . . . . . Feedback Blocked . | . . . . . . . Robot Schematics Acquired . | . . . . . . . Robots Built . | . . . . . . . Authchips . | . . . . . . . Time . | . . . . . . . Total Robot Build Rating . | . . . . . . . Part Schematics Acquired . | . . . . . . . Parts Built . | . . . . . . . Authchips . | . . . . . . . Time . | . . . . . . . Total Part Build Rating . | . . . . . . . Parts Repaired 2 | . 1 . . . 1 . Time 52 | . 26 . . . 26 . Parts Recycled . | . . . . . . . Recycled Matter . | . . . . . . . Retrieved Matter . | . . . . . . . Retrieved Components . | . . . . . . . Parts Scanalyzed . | . . . . . . . Part Schematics Acquired . | . . . . . . . Parts Damaged . | . . . . . . . Bothacking | -11 -10 -10 -10 -9 -8 -8 ------------ Run | Yrd Mat Min Exi Min Mat Sto Used RIF Installer . | . . . . . . . Robots Hacked . | . . . . . . . Non-combat . | . . . . . . . Combat . | . . . . . . . Robot Hacks Applied . | . . . . . . . Relay Couplers Released 3 | . . . . . . 3 Machine Destruction 3 | . . . . . . 3 Fabnet Peak Effective % . | . . . . . . . Robots Rewired . | . . . . . . . Allies Hacked . | . . . . . . . Hacks Repelled . | . . . . . . . Allies | -11 -10 -10 -10 -9 -8 -8 -------- Run | Yrd Mat Min Exi Min Mat Sto Total Allies 4 | . . 1 . 3 . . Largest Group 3 | . . 1 1 3 3 . Highest-Rated Group 40 | . . 31 31 40 40 . Highest-Rated Ally 31 | . . 31 31 16 16 . Total Orders 4 | . . . 2 . . 2 EXPLORE 3 | . . . 1 . . 2 RETURN 1 | . . . 1 . . . Ally Attacks 8 | . . . . . 8 . Total Damage 73 | . . . . . 73 . Kills 1 | . . . . . 1 . Allies Corrupted . | . . . . . . . Allies Melted . | . . . . . . . Intel | -11 -10 -10 -10 -9 -8 -8 ------- Run | Yrd Mat Min Exi Min Mat Sto Robot Analysis Total . | . . . . . . . Derelict Logs Recovered 2 | . . 1 . 1 . . Drone Launches 3 | . . . 1 . . 2 Drone Recoveries 2 | . . . 1 . . 1 Exploration | -11 -10 -10 -10 -9 -8 -8 ------------- Run | Yrd Mat Min Exi Min Mat Sto Turns Passed 5557 | 31 1425 908 465 1121 1050 557 Spaces Moved 2793 | 38 712 475 280 634 456 198 Core 37 | 37 . . . . . . Treads 2756 | 1 712 475 280 634 456 198 Legs . | . . . . . . . Wheels . | . . . . . . . Hover . | . . . . . . . Flight . | . . . . . . . Fastest Speed 50 | 50 160 160 160 160 160 145 Average Speed 157 | 52 160 160 160 160 160 149 Slowest Speed 160 | 160 160 160 160 160 160 160 Overloaded Moves . | . . . . . . . Propulsion Burnouts . | . . . . . . . Robots Hopped . | . . . . . . . Cave-ins Triggered . | . . . . . . . Exploration Rate (%) 62 | 3 97 98 72 97 30 40 Regions Visited 6 Branch Regions 4 Pre-discovered Areas 1 | . . 1 . . . . Known Exits Taken 1 | . . . . . 1 . Unknown Exits Taken 5 | 1 1 1 1 1 . . Scrap Searched 3 | . . 1 . 2 . . Spaces Dug 7 | . 7 . . . . . Terrain Destroyed 188 | . 14 10 . 18 43 103 Melee . | . . . . . . . Projectile . | . . . . . . . AOE 188 | . 14 10 . 18 43 103 Terrain Rammed . | . . . . . . . Walls Destroyed . | . . . . . . . Machines Disabled . | . . . . . . . Actions | -11 -10 -10 -10 -9 -8 -8 --------- Run | Yrd Mat Min Exi Min Mat Sto Total 3495 | 48 850 560 298 727 669 343 Wait 341 | . 38 29 11 69 136 58 Move 2787 | 37 711 474 279 633 455 198 Hop . | . . . . . . . Pick Up 35 | 5 11 7 1 5 3 3 Fast Attach 15 | 1 2 1 2 . 5 4 Attach 15 | 5 1 3 . . 4 2 Detach 1 | . . . . . 1 . Swap 33 | . 2 6 1 5 6 13 Drop 28 | . 2 5 4 4 5 8 Fire 232 | . 81 35 . 5 54 57 Melee . | . . . . . . . Ram . | . . . . . . . Kick . | . . . . . . . Crush 8 | . 2 . . 6 . . Escape Stasis . | . . . . . . . Rewire . | . . . . . . . Trap . | . . . . . . . Miscellaneous . | . . . . . . . Route ------- -11/Scrapyard -10/Materials (discovered 4 exits: [*Mat x3] / [*Min]) -10/Mines (discovered 3 exits: [*Mat x2] / *Exi) -10/Exiles -9/Mines (discovered 2 exits: *Mat x2) -8/Materials -8/Storage History --------- Turn | Location | Event 11 | -11/Scrapyard | Discovered new exit (range 16) 32 | -11/Scrapyard | Entered Materials 303 | -10/Materials | Build established: Mutant 506 | -10/Materials | Discovered new exit (range 6) 740 | -10/Materials | Discovered new exit (range 3) 1145 | -10/Materials | Repaired Assault Rifle 1164 | -10/Materials | Discovered new exit (range 16) 1368 | -10/Materials | Discovered new exit (range 15) 1457 | -10/Materials | Entered Mines 1458 | -10/Mines | Assembled infested the area 2002 | -10/Mines | Discovered new exit (range 7) 2190 | -10/Mines | Discovered new exit (range 9) 2341 | -10/Mines | Received a Mining Laser from a helpful Derelict 2354 | -10/Mines | Deemed a non-threat by the Exiles lab entrance 2354 | -10/Mines | Discovered new exit (range 5) 2365 | -10/Mines | Entered Exiles 2365 | -10/Exiles | Accompanied by 1 ally 2404 | -10/Exiles | Met 8R-AWN 2433 | -10/Exiles | Met EX-HEX 2482 | -10/Exiles | Met EX-BIN 2505 | -10/Exiles | Aligned with FarCom system 2506 | -10/Exiles | Given EX-Vault access code 2546 | -10/Exiles | Opened EX-Vault 2560 | -10/Exiles | Found Supersonic Drone Bay 2565 | -10/Exiles | Discovered new exit (range 57) 2589 | -10/Exiles | Found Firepult 2624 | -10/Exiles | Warned to stay clear of 0b10 Research branches 2672 | -10/Exiles | Met EX-DEC 2830 | -10/Exiles | Left Exiles lab with Firepult 2830 | -10/Exiles | Entered Mines 2906 | -9/Mines | Found a damaged Exp. Sensor Array with a note attached 2909 | -9/Mines | Found Prototype Device 2977 | -9/Mines | YI-UF0 nonchalantly dropped a Grenade Launcher on the ground 3000 | -9/Mines | Discovered new exit (range 14) 3044 | -9/Mines | Core integrity fell below 50% 3109 | -9/Mines | Received a Rocket Launcher from a helpful Derelict 3228 | -9/Mines | Learned location of 1 exit from Materials 3361 | -9/Mines | Discovered new exit (range 5) 3382 | -9/Mines | Assisted by bots powering up and referring to "LRC-V3" 3685 | -9/Mines | A weapon hastily lodged in a ceiling crevice suddenly fell to the ground 3951 | -9/Mines | Entered Materials 3951 | -8/Materials | Accompanied by 3 allies 3951 | -8/Materials | Evolved 4 slots: Propulsion x1, Utility x3 3952 | -8/Materials | Identified exit to Storage 3998 | -8/Materials | Identified Exp. Sensor Array 4044 | -8/Materials | Lost 3 allies 4592 | -8/Materials | Build established: Scavenger-Mutant 4607 | -8/Materials | Repaired Lgt. Armor Plating 5001 | -8/Materials | Entered Storage 5344 | -8/Storage | Lost 3 parts (3u) 5344 | -8/Storage | Core integrity fell below 50% 5401 | -8/Storage | First assault squad dispatched 5472 | -8/Storage | Build established: Mutant 5489 | -8/Storage | Destroyed 8 combat bots 5496 | -8/Storage | Lost 4 parts (1n3u) 5558 | -8/Storage | Self-destructed Last Messages --------------- Medium Laser. 05477_ Acquired 10 matter. 05481_ Acquired 7 matter. 05485_ Acquired 18 matter. 05487_ Acquired 4 matter. 05488_ Acquired 6 matter. 05494_ The unstable cave ceiling collapses. 05507_ Connecting with Door Terminal... 05513_ Door Terminal disabled. 05523_ The unstable cave ceiling collapses. 05537_ U-05 Engineer lays Concrete. 05539_ U-05 Engineer builds a Door. 05543_ K-01 Serf collects debris. 05544_ U-05 Engineer lays Concrete. 05545_ U-05 Engineer builds a Wall. 05548_ K-01 Serf collects debris. 05549_ U-05 Engineer lays Concrete. 05553_ K-01 Serf collects debris. 05553_ U-05 Engineer lays Concrete. 05557_ K-01 Serf collects debris. Map ----- +----------------------------------------------------+ | ??????????## # !]#####???????????????????? | | ???????????#""" # ##==#???????????????????? | | ???????????#""" # ##==#???????????????????? | | ???????????#""" + %##==#???????????????????? | | ???????????#""" # ## "##??????????????????? | | ???????????#""" # %+== T#??????????????????? | | ???????????# # #= ##??????????????????? | | ???????????########## #####???????????????????? | | ????????????????????# ]###T###?????????????????? | | ????????????????????#%[ #?????????????????? | | ?????????????? ????#] #?? ??????????????? | | ?????????????? ????# # ??????????????? | | ?????????????? ????# # ??????????????? | | ?????????????? ???# w ????????????????? | | ??????????#+###"##### = #?????????????????? | | ??????????# [ ][^% *^ #?????????????????? | | ??????????/ ^ % ] ![%[! #?????????????????? | | ??????????# ^ ] =[[|% #?????????????????? | | ??????????# = ! ! =!" ##### ????????? | | ??????????# =% G" ???????????? | | ????????#+# ! #####?????????????? | | ????????# !! #?????????????????? | | ????????# = % #?????????????????? | | ????????# ### =#+###% # #?????????????????? | | ????????# ## % % ##### #?????????????????? | | ???????## ##[ % * #@## #?????????????????? | | ???????# #= = = # #?????????????????? | | ???????# "% !![ # #?????????????????? | | ???????# [= # #?????????????????? | | ???????# = k[ "## #?????????????????? | | ???????## ## ## #?????????????????? | | ????????# ## ###? #?????????????????? | | ????????# ### # # #??? #?????????????????? | | ???????## ### # ###??? #?????????????????? | | ???????# #########????? #?????????????????? | | ???????## ##????????????? #?????????????????? | | ??????## #?????????????? #?????????????????? | | ??????# """"#?????????????? ??????????????????? | | ??????###???????????????????????????????????????? | | ????????????????????????????????????????????????? | | ????????????????????????????????????????????????? | | ????????????????????????????Y???????????????????? | | ????????????????????????????????????????????????? | | ????????????????????????????????????????????????? | | ????????????????????????????????????????????????? | | ????????????????????????????????????????????????? | | ????????????????????????????????????????????????? | | ????????????????????????????????????????????????? | | ????????????????????????????????????????????????? | | ????????????????????????????????????????????????? | +----------------------------------------------------+ Best States ------------- Heat Dissipation 59 Energy Generation 14 Energy Capacity 265 Matter Stores 300 Matter Capacity 300 Sight Range 16 Terrain Scan Density 10 Armor Coverage 300 Propulsion Shielding 33 Weapon Shielding 66 Evasion (%) 50 Recoil Reduction 3 Item Schematics ----------------- None Robot Schematics ------------------ None Fabricated ------------ Nothing Alien Tech Used ----------------- None Achievements -------------- None Challenges ------------ None Game ------ Seed DamperLightpackThrower Manual? 0 Play Time 00:37:35 Cumulative 45.4 hours Start 2024.07.28 @ 11:32:46 End 2024.07.28 @ 13:13:27 Sessions 3 Manual Loads 0 Difficulty Rogue Special Mode None Game No. 88 Rogue 87 Adventurer 1 Explorer 0 Win Type - Total 0 Types 0/0/0/0/0/0/0/0/0 Lore% 20 Gallery% 40 Achievement% 33 Wizard Run 0 Options --------- Layout 2 ASCII 0 Keyboard 0 Movement Mouse Keybinds 0 Fullscreen 1 Font 48/Smallcaps Map View 50x44 Zoom Use 0% Tactical HUD 1 Map Filters NONE Filters NONE Steam 1 RUN: ca6351bd-1ac1-4ce5-b49a-4b575373b664